[Event "Turkey IS Bank Super League 2017"]
[Site "Darica-Kocaeli"]
[Date "2017.07.28"]
[Round "3"]
[White "Nomin-Erdene, Davaademberel"]
[Black "Karavade, Eesha"]
[Result "1/2-1/2"]
[ECO "B48"]
[WhiteElo "2373"]
[BlackElo "2397"]
[Annotator "NA"]
[PlyCount "84"]
[EventType "team-tourn"]
[EventCountry "TUR"]
[SourceTitle "playchess.com"]
[Source "ChessBase"]
[SourceQuality "1"]
[TimeControl "40/5400+30:1800+30"]

1. e4 {[%emt 0:00:30]} c5 {[%emt 0:01:00]} 2. Nf3 {[%emt 0:00:30]} e6 {[%emt 0:00:30]} 3. d4 {[%emt 0:00:30]} cxd4 {[%emt 0:00:30]} 4. Nxd4 {[%emt 0:00:30]} Nc6 {[%emt 0:00:30]} 5. Nc3 {[%emt 0:00:30]} Qc7 {[%emt 0:00:30]} 6. Be3 {[%emt 0:00:00]} a6 {[%emt 0:00:30]} 7. Qd2 {[%emt 0:01:00]} Nf6 {[%emt 0:04:30]} 8. f3 {[%emt 0:01:30]} Be7 {[%emt 0:06:30]} 9. g4 {[%emt 0:00:30]} b5 {[%emt 0:04:30] LiveBook: 11 Games} 10. g5 {[%emt 0:08:30]} Nxd4 {[%emt 0:02:30]} 11. Bxd4 {[%emt 0:03:30]} Nh5 {[%emt 0:00:30]} 12. Ne2 {[%emt 0:00:30]} Bb7 {[%emt 0:15:30]} 13. O-O-O $11 {[%emt 0:09:30]} Rc8 {[%emt 0:05:30]} 14. c3 {[%emt 0:03:30]} f6 {[%emt 0:15:30]} 15. Ng3 {[%emt 0:12:30]} Nf4 {[%emt 0:00:30]} 16. gxf6 {[%emt 0:01:30]} Bxf6 {[%emt 0:02:30]} 17. Bxf6 {[%emt 0:03:30]} gxf6 {[%emt 0:00:00]} 18. Kb1 {[%emt 0:00:30]} Ke7 {[%emt 0:03:00]} 19. Ne2 {[%emt 0:04:30]} Nxe2 {[%emt 0:05:30]} 20. Bxe2 {[%emt 0:00:30]} Rcg8 {[%emt 0:00:00]} 21. c4 {[%emt 0:08:30] [%clk 0:38]} bxc4 {[%emt 0:07:00]} 22. Bxc4 {[%emt 0:02:30]} Rg6 {[%emt 0:00:30]} 23. Qb4+ {[%emt 0:02:30]} Ke8 {[%emt 0:04:30]} 24. Rc1 {[%emt 0:02:30]} Bc6 {[%emt 0:01:32]} 25. Rhd1 {[%emt 0:13:45]} Kf7 {[%emt 0:05:47]} 26. Rd6 {[%emt 0:03:46]} Re8 {[%emt 0:03:58]} 27. Rd2 {[%emt 0:04:47]} Rb8 {[%emt 0:02:02]} 28. Qc3 {[%emt 0:00:55]} Qb6 {[%emt 0:01:23]} 29. Qd3 {[%emt 0:03:05]} a5 {[%emt 0:01:03]} 30. Qd6 {[%emt 0:02:57]} Rg1 {[%emt 0:00:05]} 31. Rxg1 {[%emt 0:03:38]} Qxg1+ {[%emt 0:00:06]} 32. Rd1 {[%emt 0:00:20]} Qb6 {[%emt 0:00:31]} 33. Qd2 {[%emt 0:00:00]} a4 {[%emt 0:00:23]} 34. a3 {[%emt 0:00:33]} Rg8 {[%emt 0:03:28]} 35. Qh6 {[%emt 0:02:20]} Rg2 {[%emt 0:02:34]} 36. Qxh7+ {[%emt 0:00:49]} Ke8 {[%emt 0:00:12]} 37. Qh8+ {[%emt 0:00:46]} Ke7 {[%emt 0:00:10]} 38. Qh7+ {[%emt 0:00:00]} Ke8 {[%emt 0:00:53]} 39. Qh5+ {[%emt 0:00:57]} Ke7 {[%emt 0:00:17]} 40. Qh7+ {[%emt 0:00:00]} Kd8 {[%emt 0:31:27]} 41. Qh8+ {[%emt 0:00:52]} Ke7 {[%emt 0:00:00]} 42. Qh7+ {[%emt 0:01:30]} Kd8 {[%emt 0:00:00]} 1/2-1/2

[Event "Turkey IS Bank Super League 2017"]
[Site "Darica-Kocaeli"]
[Date "2017.07.28"]
[Round "3"]
[White "Soysal, Serkan"]
[Black "Oksuz, Akin"]
[Result "1-0"]
[ECO "A88"]
[WhiteElo "2367"]
[BlackElo "2165"]
[Annotator "NA"]
[PlyCount "115"]
[EventType "team-tourn"]
[EventCountry "TUR"]
[SourceTitle "playchess.com"]
[Source "ChessBase"]
[SourceQuality "1"]
[TimeControl "40/5400+30:1800+30"]

1. Nf3 {[%emt 0:00:30]} d6 {[%emt 0:01:00]} 2. d4 {[%emt 0:00:30]} g6 {[%emt 0:00:30]} 3. c4 {[%emt 0:00:30]} f5 {[%emt 0:00:30]} 4. g3 {[%emt 0:00:30]} Bg7 {[%emt 0:00:30]} 5. Bg2 {[%emt 0:00:30]} Nf6 {[%emt 0:00:30]} 6. O-O {[%emt 0:00:30]} O-O {[%emt 0:00:00]} 7. Nc3 {[%emt 0:00:30]} c6 {[%emt 0:00:00]} 8. Re1 {[%emt 0:03:30]} Na6 {[%emt 0:02:30]} 9. a3 {[%emt 0:13:30]} Qc7 {[%emt 0:07:30]} 10. Bf4 {[%emt 0:10:30]} Nh5 {[%emt 0:03:30]} 11. Bc1 $11 {[%emt 0:16:30]} e5 {[%emt 0:03:30]} 12. e3 {[%emt 0:06:30]} h6 {[%emt 0:07:30]} 13. b3 {[%emt 0:04:30]} Be6 {[%emt 0:07:30]} 14. Bb2 {[%emt 0:02:30]} Qf7 {[%emt 0:04:30]} 15. Rc1 {[%emt 0:09:30]} Rad8 {[%emt 0:05:30] [%clk 0:52]} 16. d5 {[%emt 0:19:38]} Bc8 {[%emt 0:01:30]} 17. b4 {[%emt 0:00:30]} c5 {[%emt 0:06:30]} 18. Qb3 {[%emt 0:02:33]} g5 {[%emt 0:03:30]} 19. Nd2 {[%emt 0:00:34]} b6 {[%emt 0:03:30]} 20. Nb5 {[%emt 0:02:15]} Nf6 {[%emt 0:03:30]} 21. Qa4 {[%emt 0:02:20]} e4 {[%emt 0:04:30]} 22. Qb3 {[%emt 0:00:33]} Ng4 {[%emt 0:01:30]} 23. Bxg7 {[%emt 0:01:23]} Qxg7 {[%emt 0:00:00]} 24. f3 {[%emt 0:00:39]} exf3 {[%emt 0:01:00]} 25. Nxf3 {[%emt 0:00:01]} Rfe8 {[%emt 0:00:30]} 26. Nd2 {[%emt 0:00:53]} Nb8 {[%emt 0:01:30]} 27. bxc5 {[%emt 0:00:31]} bxc5 {[%emt 0:04:30]} 28. h3 {[%emt 0:00:48]} Ne5 {[%emt 0:00:30]} 29. Qc2 {[%emt 0:00:34]} Rf8 {[%emt 0:02:30]} 30. Rf1 {[%emt 0:00:26]} Rf6 {[%emt 0:03:30]} 31. Rb1 {[%emt 0:00:32]} Qd7 {[%emt 0:01:30]} 32. Ne4 {[%emt 0:00:43]} Rg6 {[%emt 0:01:30]} 33. Nd2 {[%emt 0:00:15]} Rf8 {[%emt 0:01:02]} 34. Nc3 {[%emt 0:00:38]} Ba6 {[%emt 0:00:36]} 35. g4 {[%emt 0:00:25]} Rgf6 {[%emt 0:09:29]} 36. gxf5 {[%emt 0:00:09]} Bxc4 {[%emt 0:00:47]} 37. Nxc4 {[%emt 0:00:30]} Nxc4 {[%emt 0:00:00]} 38. Ne4 {[%emt 0:00:00]} Nb6 {[%emt 0:03:11]} 39. Nxf6+ {[%emt 0:00:29]} Rxf6 {[%emt 0:00:08]} 40. Qe4 {[%emt 0:00:00]} Na6 {[%emt 0:01:47]} 41. h4 {[%emt 0:04:41]} gxh4 {[%emt 0:07:30]} 42. Qxh4 {[%emt 0:08:30]} Qf7 {[%emt 0:04:30]} 43. e4 {[%emt 0:03:16]} c4 {[%emt 0:00:30]} 44. Rf3 {[%emt 0:05:58]} Kh7 {[%emt 0:00:30]} 45. Rg3 {[%emt 0:00:43]} Nc5 {[%emt 0:04:30]} 46. Rg6 {[%emt 0:02:26]} Rxg6 {[%emt 0:00:30]} 47. fxg6+ {[%emt 0:00:30]} Qxg6 {[%emt 0:00:00]} 48. Qe7+ {[%emt 0:01:43]} Qg7 {[%emt 0:00:00]} 49. Qxd6 {[%emt 0:00:48]} Nxe4 {[%emt 0:00:00]} 50. Qe6 {[%emt 0:03:56]} Nd2 {[%emt 0:00:00]} 51. Rd1 {[%emt 0:02:27]} c3 {[%emt 0:04:43]} 52. Kh1 {[%emt 0:00:30]} Qg6 {[%emt 0:06:32]} 53. Qe7+ {[%emt 0:00:35]} Kh8 {[%emt 0:00:48]} 54. Re1 {[%emt 0:01:37]} Qh5+ {[%emt 0:12:03]} 55. Kg1 {[%emt 0:00:30]} Nf3+ {[%emt 0:00:00]} 56. Bxf3 {[%emt 0:00:01]} Qxf3 {[%emt 0:00:01]} 57. Qe8+ {[%emt 0:00:24]} Kg7 {[%emt 0:00:30]} 58. Re7+ {[%emt 0:00:00]} 1-0

[Event "Turkey IS Bank Super League 2017"]
[Site "Darica-Kocaeli"]
[Date "2017.07.28"]
[Round "3"]
[White "Kerigan, Demre"]
[Black "Samani, Yamac"]
[Result "1/2-1/2"]
[ECO "B23"]
[WhiteElo "2354"]
[BlackElo "2263"]
[Annotator "NA"]
[PlyCount "89"]
[EventType "team-tourn"]
[EventCountry "TUR"]
[SourceTitle "playchess.com"]
[Source "ChessBase"]
[SourceQuality "1"]
[TimeControl "40/5400+30:1800+30"]

1. e4 {[%emt 0:00:30]} c5 {[%emt 0:01:00]} 2. Nc3 {[%emt 0:00:30]} Nc6 {[%emt 0:03:30]} 3. Bb5 {[%emt 0:00:30]} e6 {[%emt 0:00:30]} 4. Bxc6 {[%emt 0:00:30]} bxc6 {[%emt 0:00:30]} 5. d3 {[%emt 0:00:30]} Ne7 {[%emt 0:01:30]} 6. f4 {[%emt 0:06:30]} d5 {[%emt 0:07:30]} 7. Nf3 {[%emt 0:01:30]} Ng6 {[%emt 0:02:30]} 8. O-O {[%emt 0:01:30]} Bd6 {[%emt 0:04:30]} 9. Qe1 $11 {[%emt 0:13:30]} O-O {[%emt 0:22:30]} 10. Qg3 {[%emt 0:05:30]} f6 {[%emt 0:07:30]} 11. Bd2 {[%emt 0:06:30]} Qc7 {[%emt 0:01:30]} 12. Nh4 {[%emt 0:08:30]} Nxh4 {[%emt 0:02:30]} 13. Qxh4 {[%emt 0:01:30]} Rb8 {[%emt 0:06:30]} 14. b3 {[%emt 0:06:30]} f5 {[%emt 0:12:30] [%clk 0:23]} 15. e5 {[%emt 0:15:30]} Be7 {[%emt 0:00:00]} 16. Qf2 {[%emt 0:00:30]} Ba6 {[%emt 0:04:28]} 17. Rfd1 {[%emt 0:03:30]} Rfd8 {[%emt 0:01:54]} 18. Na4 {[%emt 0:02:30]} d4 {[%emt 0:07:00]} 19. Rac1 {[%emt 0:03:30]} c4 {[%emt 0:01:07]} 20. dxc4 {[%emt 0:03:19]} c5 {[%emt 0:00:30]} 21. Nb2 {[%emt 0:04:33]} Bb7 {[%emt 0:00:47]} 22. Nd3 {[%emt 0:00:08]} Qc6 {[%emt 0:00:23]} 23. Ne1 {[%emt 0:00:29]} Qa6 {[%emt 0:01:09]} 24. Ra1 {[%emt 0:03:33]} Be4 {[%emt 0:00:31]} 25. Nd3 {[%emt 0:00:46]} Rd7 {[%emt 0:01:07]} 26. h3 {[%emt 0:00:28]} Kh8 {[%emt 0:01:18]} 27. Kh2 {[%emt 0:00:31]} Qc8 {[%emt 0:01:04]} 28. Rg1 {[%emt 0:01:10]} Qe8 {[%emt 0:01:16]} 29. Qe2 {[%emt 0:00:29]} Bf8 {[%emt 0:01:50]} 30. Raf1 {[%emt 0:00:39]} g6 {[%emt 0:01:33]} 31. Be1 {[%emt 0:00:55]} Be7 {[%emt 0:00:07]} 32. Bg3 {[%emt 0:03:10]} Rb6 {[%emt 0:00:25]} 33. Qf2 {[%emt 0:01:15]} Ra6 {[%emt 0:01:03]} 34. Ra1 {[%emt 0:00:21]} Qd8 {[%emt 0:00:12]} 35. Qe2 {[%emt 0:00:58]} Qc8 {[%emt 0:02:08]} 36. a4 {[%emt 0:00:16]} Rd8 {[%emt 0:01:59]} 37. Rad1 {[%emt 0:00:57]} Rd7 {[%emt 0:00:16]} 38. Bf2 {[%emt 0:01:25]} Rb6 {[%emt 0:00:28]} 39. Qe1 {[%emt 0:01:44]} Qd8 {[%emt 0:00:22]} 40. Qa5 {[%emt 0:00:00]} Qc8 {[%emt 0:01:03]} 41. Bg3 {[%emt 0:05:54]} Ra6 {[%emt 0:03:30]} 42. Qd2 {[%emt 0:02:30]} Rb6 {[%emt 0:02:30]} 43. Qe2 {[%emt 0:04:30]} Rb8 {[%emt 0:03:30]} 44. Rd2 {[%emt 0:05:45]} Qc7 {[%emt 0:02:30]} 45. Qd1 {[%emt 0:03:15]} 1/2-1/2

[Event "Turkey IS Bank Super League 2017"]
[Site "Darica-Kocaeli"]
[Date "2017.07.28"]
[Round "3"]
[White "Gokerkan, Cem Kaan"]
[Black "Ozenir, Ekin Baris"]
[Result "0-1"]
[ECO "A26"]
[WhiteElo "2321"]
[BlackElo "2098"]
[Annotator "NA"]
[PlyCount "80"]
[EventType "team-tourn"]
[EventCountry "TUR"]
[SourceTitle "playchess.com"]
[Source "ChessBase"]
[SourceQuality "1"]
[TimeControl "40/5400+30:1800+30"]

1. c4 {[%emt 0:02:30]} e5 {[%emt 0:02:00]} 2. Nc3 {[%emt 0:00:30]} Nc6 {[%emt 0:00:30]} 3. g3 {[%emt 0:00:30]} g6 {[%emt 0:00:30]} 4. Bg2 {[%emt 0:00:30]} Bg7 {[%emt 0:00:30]} 5. d3 {[%emt 0:01:30]} d6 {[%emt 0:00:30]} 6. e4 {[%emt 0:02:30]} Nge7 {[%emt 0:04:30]} 7. Nge2 {[%emt 0:01:30]} O-O {[%emt 0:04:30]} 8. O-O {[%emt 0:03:30]} Be6 {[%emt 0:05:30]} 9. Nd5 {[%emt 0:05:30]} Qd7 {[%emt 0:15:30]} 10. Be3 $11 {[%emt 0:00:30]} f5 {[%emt 0:12:30]} 11. Qd2 {[%emt 0:01:30]} Rae8 {[%emt 0:06:30]} 12. Rae1 {[%emt 0:01:30]} Rf7 {[%emt 0:08:30]} 13. b3 {[%emt 0:03:30]} Ref8 {[%emt 0:03:30]} 14. f3 {[%emt 0:05:30]} Nd4 {[%emt 0:05:30]} 15. Nxd4 {[%emt 0:02:30]} exd4 {[%emt 0:00:30]} 16. Nxe7+ {[%emt 0:04:30]} Rxe7 {[%emt 0:01:30]} 17. Bg5 {[%emt 0:00:30]} Ree8 {[%emt 0:00:30]} 18. Bh6 {[%emt 0:19:30] [%clk 0:39]} c6 {[%emt 0:04:30]} 19. Bxg7 {[%emt 0:02:30]} Qxg7 {[%emt 0:00:30]} 20. f4 {[%emt 0:07:30]} fxe4 {[%emt 0:02:30]} 21. dxe4 {[%emt 0:00:30]} c5 {[%emt 0:01:01]} 22. h3 {[%emt 0:02:30]} Bd7 {[%emt 0:02:06]} 23. g4 {[%emt 0:04:30]} Bc6 {[%emt 0:01:51]} 24. g5 {[%emt 0:01:30]} h6 {[%emt 0:00:46]} 25. h4 {[%emt 0:00:30]} hxg5 {[%emt 0:00:56]} 26. hxg5 {[%emt 0:00:30]} Qd7 {[%emt 0:00:08]} 27. Qd1 {[%emt 0:14:01]} Re7 {[%emt 0:01:04]} 28. Rf2 {[%emt 0:02:16]} Rfe8 {[%emt 0:00:28]} 29. Qd3 {[%emt 0:00:54]} Qg4 {[%emt 0:01:53]} 30. e5 {[%emt 0:06:20]} Kg7 {[%emt 0:00:14]} 31. Ref1 {[%emt 0:01:30]} dxe5 {[%emt 0:03:26]} 32. fxe5 {[%emt 0:00:30]} Qxg5 {[%emt 0:00:20]} 33. e6 {[%emt 0:00:44]} Rxe6 {[%emt 0:01:16]} 34. Qh3 {[%emt 0:00:01]} R6e7 {[%emt 0:01:14]} 35. Qh2 {[%emt 0:01:50]} d3 {[%emt 0:02:38]} 36. Qd6 {[%emt 0:00:25]} Rd7 {[%emt 0:02:45]} 37. Qxd7+ {[%emt 0:01:21]} Bxd7 {[%emt 0:00:30]} 38. Rf7+ {[%emt 0:00:00]} Kh6 {[%emt 0:00:51]} 39. Rxd7 {[%emt 0:00:02]} Re2 {[%emt 0:00:00]} 40. Rf2 {[%emt 0:00:11]} Rxf2 {[%emt 0:00:33]} 0-1

[Event "Turkey IS Bank Super League 2017"]
[Site "Darica-Kocaeli"]
[Date "2017.07.28"]
[Round "3"]
[White "Ozen, Bahadir"]
[Black "Unat, Can Haktan"]
[Result "1-0"]
[ECO "A11"]
[WhiteElo "2315"]
[BlackElo "2006"]
[Annotator "NA"]
[PlyCount "67"]
[EventType "team-tourn"]
[EventCountry "TUR"]
[SourceTitle "playchess.com"]
[Source "ChessBase"]
[SourceQuality "1"]
[TimeControl "40/5400+30:1800+30"]

1. g3 {[%emt 0:00:30]} d5 {[%emt 0:01:00]} 2. Bg2 {[%emt 0:00:30]} c6 {[%emt 0:00:30]} 3. Nf3 {[%emt 0:00:30]} Nf6 {[%emt 0:00:30]} 4. c4 {[%emt 0:00:30]} Bg4 {[%emt 0:00:30]} 5. cxd5 {[%emt 0:01:30]} cxd5 {[%emt 0:00:30]} 6. Qb3 {[%emt 0:03:30]} Qc7 {[%emt 0:09:30]} 7. Nc3 {[%emt 0:00:30]} e6 {[%emt 0:01:30]} 8. d3 {[%emt 0:01:30]} Nc6 {[%emt 0:01:30]} 9. Bf4 {[%emt 0:08:30]} Qd7 {[%emt 0:00:30]} 10. Ne5 {[%emt 0:03:30]} Nxe5 {[%emt 0:01:30]} 11. Bxe5 {[%emt 0:00:30]} Be7 {[%emt 0:08:30]} 12. h3 {[%emt 0:03:30]} Bh5 {[%emt 0:01:30]} 13. O-O $14 {[%emt 0:15:30]} O-O {[%emt 0:26:30]} 14. e4 {[%emt 0:00:30]} Rad8 {[%emt 0:00:30]} 15. g4 {[%emt 0:00:30]} Bg6 {[%emt 0:00:30]} 16. f4 {[%emt 0:00:30]} h6 {[%emt 0:00:30]} 17. f5 {[%emt 0:02:30]} Bh7 {[%emt 0:02:30]} 18. Kh1 {[%emt 0:02:30]} Rfe8 {[%emt 0:02:30]} 19. Bh2 {[%emt 0:03:30]} d4 {[%emt 0:04:30]} 20. Nb5 {[%emt 0:04:30] [%clk 0:45]} Rc8 {[%emt 0:18:25]} 21. Nxa7 {[%emt 0:03:30]} Rc5 {[%emt 0:01:31]} 22. Rac1 {[%emt 0:01:30]} exf5 {[%emt 0:02:31]} 23. gxf5 {[%emt 0:01:30]} Bd6 {[%emt 0:02:33]} 24. Rxc5 {[%emt 0:03:30]} Bxh2 {[%emt 0:00:37]} 25. Qb5 {[%emt 0:02:30]} Qd6 {[%emt 0:03:54]} 26. e5 {[%emt 0:00:30]} Bxe5 {[%emt 0:03:12]} 27. Re1 {[%emt 0:00:30]} Nd7 {[%emt 0:00:48]} 28. Rd5 {[%emt 0:00:00]} Qf8 {[%emt 0:03:07]} 29. Qxd7 {[%emt 0:01:00]} f6 {[%emt 0:00:25]} 30. Rc1 {[%emt 0:01:30]} Kh8 {[%emt 0:01:56]} 31. Rc8 {[%emt 0:02:30]} Rxc8 {[%emt 0:01:14]} 32. Qxc8 {[%emt 0:00:00]} Qxc8 {[%emt 0:00:52]} 33. Nxc8 {[%emt 0:00:00]} Bxf5 {[%emt 0:00:00]} 34. Be4 {[%emt 0:00:30]} 1-0

[Event "Turkey IS Bank Super League 2017"]
[Site "Darica-Kocaeli"]
[Date "2017.07.28"]
[Round "3"]
[White "Tuncer, Tuna"]
[Black "Ozen, Deniz"]
[Result "0-1"]
[ECO "C07"]
[WhiteElo "2274"]
[BlackElo "2351"]
[Annotator "NA"]
[PlyCount "80"]
[EventType "team-tourn"]
[EventCountry "TUR"]
[SourceTitle "playchess.com"]
[Source "ChessBase"]
[SourceQuality "1"]
[TimeControl "40/5400+30:1800+30"]

1. e4 {[%emt 0:00:30]} e6 {[%emt 0:01:00]} 2. d4 {[%emt 0:00:30]} d5 {[%emt 0:02:30]} 3. Nd2 {[%emt 0:00:30]} c5 {[%emt 0:00:00]} 4. Ngf3 {[%emt 0:00:30]} cxd4 {[%emt 0:00:00]} 5. exd5 {[%emt 0:00:00]} Qxd5 {[%emt 0:00:30]} 6. Bc4 {[%emt 0:00:00]} Qd7 {[%emt 0:00:00]} 7. O-O {[%emt 0:00:30]} Nc6 {[%emt 0:00:00]} 8. Nb3 {[%emt 0:00:30]} a6 {[%emt 0:00:30]} 9. Nbxd4 {[%emt 0:00:00]} Nxd4 {[%emt 0:00:00]} 10. Nxd4 {[%emt 0:00:00]} Qc7 {[%emt 0:00:00]} 11. Qe2 {[%emt 0:00:30]} Bd6 {[%emt 0:00:30]} 12. Nf5 {[%emt 0:00:30]} Bxh2+ {[%emt 0:00:30]} 13. Kh1 {[%emt 0:00:30]} Be5 {[%emt 0:00:30]} 14. Re1 {[%emt 0:00:30]} g6 {[%emt 0:00:30]} 15. Nh6 {[%emt 0:02:30]} Bf4 {[%emt 0:24:30]} 16. Nxf7 {[%emt 0:08:30]} Kxf7 $15 {[%emt 0:06:30]} ({Much less strong is} 16... Qxf7 17. Bxf4 Qxf4 18. Bxe6 $17) 17. Bxe6+ {[%emt 0:28:30]} Kg7 {[%emt 0:03:30]} 18. Bxg8 {[%emt 0:25:30]} Rxg8 {[%emt 0:08:30]} 19. Bxf4 {[%emt 0:03:30]} Qxf4 {[%emt 0:00:30]} 20. Qe7+ {[%emt 0:00:30]} Kh8 {[%emt 0:01:30]} 21. Re4 {[%emt 0:01:30]} Qh6+ {[%emt 0:03:30] [%clk 0:46]} 22. Rh4 {[%emt 0:14:20]} Qg7 {[%emt 0:01:30]} 23. Re1 {[%emt 0:00:06]} Bf5 {[%emt 0:02:30]} 24. g4 {[%emt 0:06:05]} Qxe7 {[%emt 0:00:30]} 25. Rxe7 {[%emt 0:00:04]} g5 {[%emt 0:00:00]} 26. Rh2 {[%emt 0:00:51]} Bg6 {[%emt 0:00:00]} 27. f3 {[%emt 0:00:00]} Rg7 {[%emt 0:02:30]} 28. Rhe2 {[%emt 0:00:00]} Rxe7 {[%emt 0:00:30]} 29. Rxe7 {[%emt 0:00:30]} b5 {[%emt 0:00:00]} 30. Re2 {[%emt 0:01:26]} Re8 {[%emt 0:00:00]} 31. Rd2 {[%emt 0:00:30]} Re1+ {[%emt 0:00:30]} 32. Kg2 {[%emt 0:00:00]} Rc1 {[%emt 0:00:00]} 33. Kg3 {[%emt 0:02:38]} Rxc2 {[%emt 0:01:00]} 34. Rd6 {[%emt 0:00:06]} a5 {[%emt 0:00:30]} 35. Rd5 {[%emt 0:01:33]} Rxb2 {[%emt 0:00:30]} 36. Rxg5 {[%emt 0:00:06]} a4 {[%emt 0:00:30]} 37. f4 {[%emt 0:02:29]} Bf7 {[%emt 0:03:30]} 38. a3 {[%emt 0:02:12]} b4 {[%emt 0:00:30]} 39. axb4 {[%emt 0:00:08]} a3 {[%emt 0:00:30]} 40. Ra5 {[%emt 0:00:53]} a2 {[%emt 0:00:00]} 0-1

[Event "Turkey IS Bank Super League 2017"]
[Site "Darica-Kocaeli"]
[Date "2017.07.28"]
[Round "3"]
[White "Demircioglu, Emre"]
[Black "Karatekin, Tamer"]
[Result "1/2-1/2"]
[ECO "E16"]
[WhiteElo "2265"]
[BlackElo "2287"]
[Annotator "NA"]
[PlyCount "82"]
[EventType "team-tourn"]
[EventCountry "TUR"]
[SourceTitle "playchess.com"]
[Source "ChessBase"]
[SourceQuality "1"]
[TimeControl "40/5400+30:1800+30"]

1. d4 {[%emt 0:00:30]} Nf6 {[%emt 0:01:00]} 2. c4 {[%emt 0:00:30]} e6 {[%emt 0:00:30]} 3. Nf3 {[%emt 0:02:30]} b6 {[%emt 0:00:00]} 4. g3 {[%emt 0:01:30]} Bb7 {[%emt 0:00:00]} 5. Bg2 {[%emt 0:00:00]} g6 {[%emt 0:02:30]} 6. O-O {[%emt 0:04:00]} d5 {[%emt 0:02:30]} 7. Ne5 {[%emt 0:06:30]} Bg7 {[%emt 0:00:30]} 8. Bg5 {[%emt 0:07:30]} O-O {[%emt 0:01:30]} 9. Nc3 {[%emt 0:01:30]} h6 {[%emt 0:03:30]} 10. Bxf6 {[%emt 0:06:30]} Bxf6 {[%emt 0:00:30]} 11. cxd5 {[%emt 0:01:30]} exd5 {[%emt 0:00:30] [#]} 12. Qb3 (12. f4 $1 $16) 12... c6 {[%emt 0:05:00]} 13. e4 $14 {[%emt 0:09:00]} Bxe5 14. dxe5 d4 15. Rfd1 Na6 16. Qc4 c5 17. Nd5 Rb8 18. a4 Kg7 19. f4 Rc8 20. h4 Nc7 21. b4 Na6 22. bxc5 Nxc5 23. Qxd4 Bxd5 24. Qxd5 Qe7 25. Qd6 Rfe8 26. Qxe7 Rxe7 27. Rac1 Rec7 28. Bh3 Re8 29. Rc4 Ree7 30. Rdc1 a5 31. Rb1 Nd3 32. Rxc7 Rxc7 33. Rxb6 Rc1+ 34. Bf1 Nc5 35. Rc6 Rc3 36. Bb5 Rxg3+ 37. Kh2 Nxe4 38. Rc7 Rc3 39. Bc4 Rc2+ 40. Kg1 Rc1+ 41. Kg2 Rc2+ 1/2-1/2

[Event "Turkey IS Bank Super League 2017"]
[Site "Darica-Kocaeli"]
[Date "2017.07.28"]
[Round "3"]
[White "Yaran, Siar"]
[Black "Uzumcu, Ahmet Utku"]
[Result "0-1"]
[ECO "A16"]
[WhiteElo "2253"]
[BlackElo "2223"]
[Annotator "NA"]
[PlyCount "160"]
[EventType "team-tourn"]
[EventCountry "TUR"]
[SourceTitle "playchess.com"]
[Source "ChessBase"]
[SourceQuality "1"]
[TimeControl "40/5400+30:1800+30"]

1. c4 {[%emt 0:00:30]} Nf6 {[%emt 0:01:00]} 2. Nc3 {[%emt 0:00:30]} d5 {[%emt 0:00:30]} 3. cxd5 {[%emt 0:00:30]} Nxd5 {[%emt 0:00:30]} 4. g3 {[%emt 0:02:30]} Nb6 {[%emt 0:01:30]} 5. Bg2 {[%emt 0:00:30]} g6 {[%emt 0:00:30]} 6. d3 {[%emt 0:00:30]} Bg7 {[%emt 0:00:00]} 7. Be3 {[%emt 0:00:30]} Nc6 {[%emt 0:00:00]} 8. Bxc6+ {[%emt 0:00:30]} bxc6 {[%emt 0:00:30]} 9. Qc1 {[%emt 0:00:00]} h6 {[%emt 0:00:00]} 10. Nf3 {[%emt 0:00:00]} Bh3 {[%emt 0:00:00]} 11. Rg1 {[%emt 0:00:00]} Bg4 {[%emt 0:01:30]} 12. Nd2 {[%emt 0:01:00]} h5 {[%emt 0:02:30]} 13. Nb3 {[%emt 0:07:30]} a5 {[%emt 0:02:30]} 14. Nc5 {[%emt 0:12:30]} O-O {[%emt 0:03:30]} 15. Bh6 {[%emt 0:02:30]} Bxh6 {[%emt 0:02:30]} 16. Qxh6 {[%emt 0:01:30]} Qd4 {[%emt 0:00:30]} 17. N5e4 $14 {[%emt 0:04:30]} Nd5 {[%emt 0:02:30]} 18. h3 {[%emt 0:15:30]} Bf5 {[%emt 0:09:30]} 19. Ng5 {[%emt 0:06:30]} Qg7 {[%emt 0:00:00]} 20. Qxg7+ {[%emt 0:04:30]} Kxg7 {[%emt 0:00:00]} 21. g4 {[%emt 0:00:30]} hxg4 {[%emt 0:00:30]} 22. hxg4 {[%emt 0:00:30]} Bd7 {[%emt 0:00:30]} 23. Na4 {[%emt 0:02:30]} Rh8 {[%emt 0:05:30]} 24. Nf3 {[%emt 0:00:30]} Nf4 {[%emt 0:04:30]} 25. Rc1 {[%emt 0:02:30]} Be6 {[%emt 0:05:30]} 26. Nd4 {[%emt 0:14:36] [%clk 0:17.39]} Bxa2 {[%emt 0:06:30]} 27. Rxc6 {[%emt 0:03:08]} Rab8 {[%emt 0:07:30]} 28. Rc3 {[%emt 0:04:57]} Rb4 {[%emt 0:08:30]} 29. Ra3 {[%emt 0:00:02]} Bd5 {[%emt 0:00:30]} 30. Nc2 {[%emt 0:01:11]} Nh3 {[%emt 0:04:30]} 31. Rg3 {[%emt 0:00:43]} Rxa4 {[%emt 0:00:30]} 32. Rxa4 {[%emt 0:00:06]} Bb3 {[%emt 0:00:00]} 33. Rxa5 {[%emt 0:02:37]} Bxc2 {[%emt 0:00:00]} 34. Ra3 {[%emt 0:00:00]} Bb1 {[%emt 0:05:30]} 35. Kd2 {[%emt 0:08:25]} Nxf2 {[%emt 0:01:30]} 36. Ra1 {[%emt 0:01:00]} Rh1 {[%emt 0:01:30]} 37. Rg2 {[%emt 0:01:20]} Nh3 {[%emt 0:02:30]} 38. e3 {[%emt 0:00:36]} Rf1 {[%emt 0:00:30]} 39. Re2 {[%emt 0:01:40]} Ng1 {[%emt 0:00:30]} 40. Rg2 {[%emt 0:00:00]} Nf3+ {[%emt 0:01:30]} 41. Kc3 {[%emt 0:02:39]} Rc1+ {[%emt 0:01:30]} 42. Kb4 {[%emt 0:00:30]} Rd1 {[%emt 0:01:30]} 43. Re2 {[%emt 0:14:10]} Ne1 {[%emt 0:02:30]} 44. Kc3 {[%emt 0:00:32]} Rxd3+ {[%emt 0:01:30]} 45. Kc4 {[%emt 0:00:06]} Rd1 {[%emt 0:00:30]} 46. Kc3 {[%emt 0:00:08]} Nf3 {[%emt 0:02:30]} 47. b3 {[%emt 0:00:33]} Bc2 {[%emt 0:01:30]} 48. Rxd1 {[%emt 0:00:50]} Bxd1 {[%emt 0:00:30]} 49. Ra2 {[%emt 0:00:00]} Ne5 {[%emt 0:00:00]} 50. Ra7 {[%emt 0:01:21]} c6 {[%emt 0:02:00]} 51. g5 {[%emt 0:00:04]} e6 {[%emt 0:00:30]} 52. Rc7 {[%emt 0:00:43]} Kf8 {[%emt 0:01:30]} 53. b4 {[%emt 0:02:12]} Ba4 {[%emt 0:00:30]} 54. Rc8+ {[%emt 0:07:23]} Ke7 {[%emt 0:01:30]} 55. Rc7+ {[%emt 0:00:04]} Kd6 {[%emt 0:00:30]} 56. Ra7 {[%emt 0:00:03]} Bb5 {[%emt 0:00:30]} 57. e4 {[%emt 0:00:08]} Bf1 {[%emt 0:00:30]} 58. Kd4 {[%emt 0:00:48]} Bb5 {[%emt 0:05:30]} 59. Ke3 {[%emt 0:01:11]} Nd7 {[%emt 0:00:00]} 60. Kd4 {[%emt 0:00:33]} e5+ {[%emt 0:01:00]} 61. Ke3 {[%emt 0:00:01]} Bc4 {[%emt 0:00:30]} 62. Kd2 {[%emt 0:00:51]} Ke6 {[%emt 0:00:30]} 63. Rc7 {[%emt 0:00:36]} Bb5 {[%emt 0:00:30]} 64. Ke3 {[%emt 0:00:00]} Nb8 {[%emt 0:00:30]} 65. Rc8 {[%emt 0:02:42]} Na6 {[%emt 0:00:30]} 66. Re8+ {[%emt 0:00:30]} Kd6 {[%emt 0:00:30]} 67. Rd8+ {[%emt 0:00:06]} Ke7 {[%emt 0:00:00]} 68. Ra8 {[%emt 0:00:17]} Nxb4 {[%emt 0:00:00]} 69. Ra7+ {[%emt 0:00:00]} Ke6 {[%emt 0:00:30]} 70. Rb7 {[%emt 0:00:07]} Nc2+ {[%emt 0:00:30]} 71. Kd2 {[%emt 0:00:55]} Nd4 {[%emt 0:00:30]} 72. Ke3 {[%emt 0:00:00]} c5 {[%emt 0:00:00]} 73. Rb6+ {[%emt 0:00:00]} Bc6 {[%emt 0:00:00]} 74. Ra6 {[%emt 0:00:34]} Kd6 {[%emt 0:00:30]} 75. Ra7 {[%emt 0:00:00]} Bd7 {[%emt 0:00:30]} 76. Ra6+ {[%emt 0:00:16]} Ke7 {[%emt 0:00:00]} 77. Ra5 {[%emt 0:00:22]} Ne6 {[%emt 0:00:00]} 78. Kd3 {[%emt 0:00:09]} Kd6 {[%emt 0:00:00]} 79. Ra6+ {[%emt 0:00:30]} Bc6 {[%emt 0:00:00]} 80. Ra7 {[%emt 0:00:30]} Nxg5 {[%emt 0:00:30]} 0-1